bitfinex-derivatives/quotes_ETHF0:USTF0_20250505
["timestamp","ask_amount","ask_price","bid_price","bid_amount"]
[1746428373823,3.185,1820.7,1820.6,1.09848]
[1746428374124,4.28342,1820.7,1820.6,1.09848]
[1746428374323,3.185,1820.7,1820.6,3.57128]
[1746428374624,4.28342,1820.7,1820.6,3.57128]
[1746428374821,4.28342,1820.7,1820.6,2.4728]
[1746428376420,4.28342,1820.7,1820.6,3.57128]
[1746428378520,3.185,1820.7,1820.6,3.57128]
[1746428378823,4.28342,1820.7,1820.6,3.57128]
[1746428379720,3.2078,1820.8,1820.7,1.09842]
[1746428379924,3.2078,1820.8,1820.7,3.55692]
[1746428381423,4.7751,1820.8,1820.7,3.55692]
[1746428382927,4.7751,1820.8,1820.7,2.69852]
[1746428384529,1.09843,1820.7,1820.5,1.09849]
[1746428384723,2.66703,1820.7,1820.5,1.09848]
[1746428384922,0.8494,1820.6,1820.4,2.4939]
[1746428385125,2.418,1820.6,1820.5,1.09854]
[1746428385429,3.2548,1820.6,1820.5,1.09854]
[1746428388733,3.2548,1820.6,1820.5,2.67794]
[1746428395534,3.2548,1820.6,1820.5,1.09854]
[1746428398634,4.35328,1820.6,1820.4,1.09855]
[1746428398832,1.5668,1820.5,1820.4,1.09855]
[1746428401835,1.5668,1820.5,1820.4,2.72165]
[1746428402031,1.5668,1820.5,1820.2,5.10747]
[1746428402233,1.09863,1820.4,1820.2,5.92957]
[1746428402424,1.09872,1820.2,1820.1,7.27189737]
[1746428402829,1.6681,1820.3,1820.1,7.27189737]
[1746428403025,1.6802,1820.5,1820.4,1.0986]
[1746428403230,1.6802,1820.5,1820.4,8.0384]
[1746428403942,3.66286204,1820.8,1820.4,14.3321]
[1746428404131,3.66286204,1820.8,1820.7,4.30622]
[1746428404334,3.66286204,1820.8,1820.6,3.544]
[1746428404634,1.09854,1820.5,1820.4,3.732]
[1746428405030,12.85034,1820.5,1820.4,3.732]
[1746428405230,1.09862,1820.4,1820.1,8.37067737]
[1746428405432,0.8477,1820.3,1820.2,1.09872]
[1746428405631,0.8477,1820.3,1820.2,2.68942]
[1746428405930,2.432,1820.3,1820.2,1.5907]
[1746428406134,2.432,1820.3,1820.2,10.90784606]
[1746428406630,3.53066,1820.3,1820.2,10.90784606]
[1746428408034,3.53066,1820.3,1820.1,14.54379474]
[1746428408035,1.09872,1820.2,1820.1,14.54379474]
[1746428408340,6.22702,1820.2,1820.1,14.54379474]
[1746428408639,11.22702,1820.2,1820.1,14.54379474]
[1746428409540,10.1283,1820.2,1819.8,1.09896]
[1746428409739,3.60331,1820.1,1819.9,1.0989]
[1746428409936,1.689,1820.0,1819.9,1.0989]
[1746428410537,1.689,1820.0,1819.8,2.69333]
[1746428411441,2.78785,1820.0,1819.8,2.69333]
[1746428411742,1.6889,1819.9,1819.8,1.5944]
[1746428412441,2.7878,1819.9,1819.7,1.09902]
[1746428412643,0.8149,1819.8,1819.7,1.09902]
[1746428412941,2.5038,1819.8,1819.7,1.09902]
[1746428413143,2.5038,1819.8,1819.7,2.81312]
[1746428413543,2.5038,1819.8,1819.7,1.7141]
[1746428413737,2.5038,1819.8,1819.6,9.22164896]
[1746428413937,1.6889,1819.7,1819.6,3.65404]
[1746428417340,0.8023,1819.9,1819.7,1.09902]
[1746428417540,0.8023,1819.9,1819.8,1.6006]
[1746428417741,2.4056,1819.9,1819.8,1.6006]
[1746428418345,3.5045,1819.9,1819.8,1.6006]
[1746428419746,1.09903,1819.7,1819.5,4.30691]
[1746428420138,1.6033,1819.6,1819.5,4.30691]
[1746428421345,2.7024,1819.6,1819.4,2.69976]
[1746428421541,1.6412,1819.5,1819.4,1.6006]
[1746428421743,3.2057,1819.5,1819.4,2.6998]
[1746428421944,3.2057,1819.5,1819.4,1.6006]
[1746428422347,4.30486,1819.5,1819.3,5.11902]
[1746428422643,1.5645,1819.4,1819.3,5.11902]
[1746428424851,1.5645,1819.4,1819.3,4.30702]
[1746428425056,2.66373,1819.4,1818.9,19.25865896]
[1746428425254,2.66373,1819.4,1819.2,1.09928]
[1746428425552,1.6041,1819.3,1819.2,1.09928]
[1746428426152,1.6041,1819.3,1819.2,1.09932]
[1746428427151,1.6041,1819.3,1819.2,1.93392]
[1746428428652,2.70336,1819.3,1819.1,2.74044]
[1746428428855,0.7906,1819.2,1819.1,2.74044]
[1746428429147,2.4839,1819.2,1819.1,2.74044]
[1746428431050,3.2078,1819.7,1819.1,1.6411]
[1746428431248,4.40096,1819.7,1819.5,1.09913]
[1746428431555,1.6694,1819.6,1819.5,1.09913]
[1746428433948,1.6694,1819.6,1819.3,0.782]
[1746428434148,1.09923,1819.4,1819.2,4.3071]
[1746428434351,3.2845,1819.3,1819.2,4.3071]
[1746428435453,2.4757,1819.3,1819.2,4.3071]
[1746428435756,0.8239,1819.3,1819.2,4.3071]
[1746428436658,1.6357,1819.4,1819.3,1.09926]
[1746428436850,1.6357,1819.4,1819.3,3.57116]
[1746428438251,0.8315,1819.5,1819.4,1.0992]
[1746428438552,2.4672,1819.5,1819.4,2.7497]
[1746428441161,3.56634,1819.5,1819.4,2.7497]
[1746428441362,2.4672,1819.5,1819.4,1.0992]
[1746428444264,3.5664,1819.5,1819.3,1.09922]
[1746428444564,1.6292,1819.4,1819.3,1.09922]
[1746428445265,1.6292,1819.4,1819.3,2.76592]
[1746428445666,1.9307,1819.5,1819.4,1.0992]
[1746428445866,3.559,1819.5,1819.4,1.0992]
[1746428446366,3.559,1819.5,1819.3,2.76592]
[1746428446565,3.559,1819.5,1819.4,1.0992]
[1746428447969,3.559,1819.5,1819.3,2.76592]
[1746428448669,0.8315,1819.5,1819.4,1.0992]
[1746428448858,0.8315,1819.5,1819.4,3.4839]
[1746428450469,1.93064,1819.5,1819.4,3.4839]
[1746428451364,0.8315,1819.5,1819.4,3.4839]
[1746428453170,1.93064,1819.5,1819.4,3.4839]
[1746428453363,1.93064,1819.5,1819.4,1.0992]
[1746428453766,1.09923,1819.4,1819.3,1.09924]
[1746428454065,0.8315,1819.5,1819.2,5.7652]
[1746428454066,1.93069,1819.5,1819.4,1.0992]
[1746428454267,3.57944,1819.5,1818.9,3.573]
[1746428454471,1.09929,1819.3,1819.2,1.09932]
[1746428454672,1.09926,1819.4,1819.2,1.09932]
[1746428454869,4.30685,1819.7,1819.5,1.0991]
[1746428455167,7.97018761,1819.7,1819.6,1.09908]
[1746428455569,7.97018761,1819.7,1819.5,1.09911]
[1746428455770,6.87116761,1819.7,1819.6,1.09908]
[1746428455969,3.66336761,1819.7,1819.6,1.09908]
[1746428456166,3.66336761,1819.7,1819.6,4.30688]
[1746428456872,3.66336761,1819.7,1819.6,5.13558]
[1746428457674,3.66336761,1819.7,1819.6,6.74948]
[1746428457877,1.09897,1819.8,1819.6,6.74948]
[1746428458373,1.09897,1819.8,1819.7,1.6139]
[1746428460273,4.76230761,1819.9,1819.7,2.71292]
[1746428460870,4.76230761,1819.9,1819.8,1.6091]
[1746428461277,1.09894,1819.9,1819.8,1.6091]
[1746428461578,4.50256761,1820.0,1819.9,1.0989]
[1746428461877,4.50256761,1820.0,1819.9,1.9281]
[1746428463083,3.66336761,1820.0,1819.9,1.9281]
[1746428463776,3.66336761,1820.0,1819.9,6.9281]
[1746428464080,5.4992916,1820.1,1820.0,1.09884]
[1746428464282,5.4992916,1820.1,1820.0,5.98794]
[1746428464875,7.0941916,1820.4,1820.3,1.09866]
[1746428465069,5.4992916,1820.4,1820.3,1.09866]
[1746428465477,5.4992916,1820.4,1820.3,3.56926]
[1746428466473,5.4992916,1820.4,1820.2,4.3065]
[1746428466673,2.73189,1820.3,1820.1,4.4374]
[1746428466872,2.73189,1820.3,1819.9,1.09887]
[1746428466873,1.0988,1820.1,1819.9,1.09887]
[1746428467072,2.4267,1820.0,1819.9,1.09887]
[1746428467484,0.841,1820.2,1819.9,1.7189]
[1746428467784,9.0712916,1820.4,1820.0,3.2078]
[1746428467785,5.4992916,1820.4,1820.0,3.2078]
[1746428468077,5.4992916,1820.4,1820.2,1.09869]
[1746428468284,2.7318,1820.4,1820.1,3.62664]
[1746428468586,2.73187,1820.3,1820.1,3.62664]
[1746428468881,2.4742,1820.2,1820.1,3.62664]
[1746428469986,2.4742,1820.2,1820.0,8.03861]
[1746428470282,1.5946,1820.1,1820.0,3.2078]
[1746428470482,1.09886,1820.0,1819.8,5.53564]
[1746428470685,2.6935,1819.9,1819.8,3.572]
[1746428470879,3.4828,1819.9,1819.7,13.77411896]
[1746428471080,1.5946,1819.8,1819.7,12.67510896]
[1746428471275,1.5946,1819.8,1819.7,10.04212896]
[1746428471477,1.5946,1819.8,1819.7,10.89862896]
[1746428471681,2.69356,1819.8,1819.7,7.28170896]
[1746428471891,1.5946,1819.8,1819.7,8.38072896]
[1746428472080,1.5946,1819.8,1819.7,8.94310896]
[1746428472282,0.7893,1819.9,1819.7,10.04209896]
[1746428472484,1.88821,1819.9,1819.7,10.04209896]
[1746428472786,1.88821,1819.9,1819.7,2.76039]
[1746428473285,1.7271,1819.8,1819.7,2.76039]
[1746428474078,1.09868,1820.3,1819.7,10.3934]
[1746428474281,4.51191,1820.4,1820.2,1.09869]
[1746428474685,1.7271,1820.3,1820.2,1.09869]
[1746428474885,1.7271,1820.3,1820.2,2.78529]
[1746428475086,2.82576,1820.3,1820.2,1.6866]
[1746428475885,2.82576,1820.3,1820.2,2.78532]
[1746428475886,1.7271,1820.3,1820.2,2.78532]
[1746428482385,3.2078,1820.5,1820.2,1.6866]
[1746428482590,4.8272,1820.5,1820.3,1.7283]
[1746428482892,4.8272,1820.5,1820.4,1.9001]
[1746428483993,5.92574,1820.5,1820.3,2.82691]
[1746428484193,1.6194,1820.4,1820.3,2.82691]
[1746428484987,1.6194,1820.4,1820.3,1.09861]
[1746428487292,2.71801,1820.4,1820.2,1.09869]
[1746428487493,1.6514,1820.3,1820.1,3.582]
[1746428487694,3.2596,1820.3,1820.2,1.09872]
[1746428488195,11.4674,1820.3,1819.6,16.38750896]
[1746428488499,1.09885,1820.0,1819.7,7.21717]
[1746428488693,3.2078,1820.1,1819.7,3.581]
[1746428488694,3.2396,1819.9,1819.7,3.581]
[1746428488890,1.6082,1819.8,1819.7,1.09902]
[1746428490001,2.70716,1819.8,1819.6,3.61514]
[1746428490296,2.70716,1819.8,1819.6,2.83114]
[1746428490501,1.6082,1819.7,1819.6,2.83114]
[1746428492000,1.6314,1819.9,1819.7,1.09897]
[1746428492201,2.4878,1819.9,1819.8,1.09896]
[1746428492495,4.0547,1820.1,1819.9,1.09887]
[1746428492700,5.7511,1820.1,1820.0,1.673]
[1746428493698,5.7511,1820.1,1819.9,1.88577]
[1746428493899,1.6466,1820.0,1819.9,1.88577]
[1746428494092,1.6466,1820.0,1819.9,3.55567]
[1746428494289,1.6466,1820.0,1819.9,1.6699]
[1746428494494,1.6466,1820.0,1819.8,5.16952]
[1746428494797,1.6466,1820.0,1819.8,6.83942]
[1746428495002,2.74546,1820.0,1819.8,6.83942]
[1746428495498,1.6466,1819.9,1819.8,6.83942]
[1746428495701,1.0987,1820.3,1820.0,1.0988]
[1746428495998,2.5051,1820.3,1819.8,3.2078]
[1746428496196,3.2078,1820.0,1819.4,5.6664]
[1746428496397,1.6912,1819.9,1819.5,1.6699]
[1746428496697,1.09898,1819.8,1819.5,1.6699]
[1746428496898,1.6684,1819.7,1819.5,2.76901]
[1746428497099,1.6684,1819.7,1819.5,1.6699]
[1746428497395,0.8439,1819.6,1819.5,2.76904]
[1746428497800,2.5123,1819.6,1819.5,2.76904]
[1746428498301,2.5123,1819.6,1819.5,1.6699]
[1746428498503,3.61141,1819.6,1819.4,3.9965]
[1746428498700,2.5223,1819.5,1819.4,3.2078]
[1746428499903,2.5223,1819.5,1819.4,4.307]
[1746428500202,2.5223,1819.5,1819.4,5.8732]
[1746428500601,1.6684,1819.5,1819.4,5.8732]
[1746428500806,0.8439,1819.6,1819.4,5.8732]
[1746428500807,0.8277,1819.8,1819.6,1.09908]
[1746428501001,4.46988,1819.8,1819.5,1.5662]
[1746428501302,1.09904,1819.7,1819.5,1.5662]
[1746428501492,2.81434,1819.7,1819.4,4.30696]
[1746428501695,2.81434,1819.7,1819.4,5.87316]
[1746428501892,2.81438,1819.6,1819.4,5.87316]
[1746428502092,2.5432,1819.5,1819.4,5.8732]
[1746428503002,2.5432,1819.5,1819.4,3.2078]
[1746428503904,2.5432,1819.5,1819.4,4.307]
[1746428504105,2.5432,1819.5,1819.4,3.2078]
[1746428505001,2.5432,1819.5,1819.2,3.582]
[1746428505206,3.64104,1819.4,1819.2,4.68132]
[1746428505507,1.6931,1819.3,1819.2,4.68132]
[1746428505699,1.6931,1819.3,1819.2,6.38872]
[1746428507306,0.8487,1819.4,1819.3,1.09926]
[1746428507602,2.4342,1819.4,1819.3,2.71856]
[1746428515508,0.8279,1819.5,1819.4,1.0992]
[1746428515709,0.8279,1819.5,1819.4,3.6088]
[1746428515907,2.3994,1819.5,1819.4,3.6088]
[1746428517209,1.5715,1819.5,1819.4,3.6088]
[1746428518009,1.5715,1819.5,1819.4,6.8166]
[1746428519109,1.5715,1819.5,1819.4,3.6088]
[1746428520108,1.5715,1819.5,1819.4,7.3408]
[1746428520609,0.8237,1819.6,1819.5,1.09914]
[1746428520812,2.5027,1819.6,1819.5,2.77784]
[1746428522313,1.679,1819.6,1819.5,2.77784]
[1746428523413,0.8599,1819.7,1819.6,1.09908]
[1746428523613,2.4547,1819.7,1819.6,2.68598]
[1746428526505,3.55372,1819.7,1819.6,1.09908]
[1746428527011,2.4547,1819.7,1819.6,1.09908]
[1746428527614,3.55372,1819.7,1819.6,1.09908]
[1746428527913,2.4547,1819.7,1819.6,1.09908]
[1746428530014,3.55375,1819.7,1819.5,2.6837]
[1746428530314,1.7145,1819.6,1819.5,2.6837]
[1746428531213,1.7145,1819.6,1819.5,6.4157]
[1746428531615,0.8599,1819.7,1819.6,1.09908]
[1746428531812,0.8599,1819.7,1819.6,2.76388]
[1746428532312,2.5744,1819.7,1819.6,2.76388]
[1746428541114,3.67342,1819.7,1819.6,1.09908]
[1746428542314,2.5744,1819.7,1819.6,1.09908]
[1746428543920,2.5744,1819.7,1819.6,1.88798]
[1746428545517,0.8217,1819.8,1819.7,1.09902]
[1746428545721,11.0686916,1819.9,1819.8,1.09896]
[1746428546425,12.1675916,1819.9,1819.7,2.72738]
[1746428546625,11.0686916,1819.9,1819.8,1.09896]
[1746428546818,5.5694,1819.9,1819.6,0.7889]
[1746428547019,2.6782,1819.8,1819.6,1.09908]
[1746428547221,1.5792,1819.7,1819.6,1.09908]
[1746428547519,2.4061,1819.7,1819.6,1.09908]
[1746428548536,3.50512,1819.7,1819.5,4.64411]
[1746428548828,2.5177,1819.6,1819.5,4.64411]
[1746428549426,2.5177,1819.6,1819.5,1.09911]
[1746428550122,2.5177,1819.6,1819.5,3.732]
[1746428550324,3.61678,1819.6,1819.5,3.732]
[1746428550524,8.61678,1819.6,1819.5,3.732]
[1746428551225,1.0992,1819.5,1819.3,8.38095896]
[1746428551426,5.9744,1819.5,1819.3,8.38095896]
[1746428551638,2.5187,1819.4,1819.3,8.38095896]
[1746428553320,3.6179,1819.4,1819.3,8.38095896]
[1746428553522,2.5187,1819.4,1819.3,8.38095896]
[1746428553830,2.5187,1819.4,1819.3,1.09925]
[1746428554124,3.6179,1819.4,1819.2,1.0993]
[1746428554325,2.4807,1819.3,1819.2,1.0993]
[1746428554926,3.57996,1819.3,1819.1,2.74844]
[1746428555128,1.7316,1819.2,1819.1,2.74844]
[1746428555521,1.7316,1819.2,1819.1,1.6491]
[1746428555723,1.7316,1819.2,1819.1,2.74848]
[1746428555924,1.7316,1819.2,1819.1,1.6491]
[1746428556228,2.83092,1819.2,1819.0,9.4997]
[1746428556428,0.7827,1819.1,1819.0,11.1769]
[1746428556623,2.5143,1819.1,1819.0,6.0144]
[1746428556819,3.61368,1819.1,1819.0,3.545]
[1746428557220,1.09945,1819.0,1818.9,7.28170896]
[1746428557427,3.66205,1819.0,1818.9,7.28170896]
[1746428557832,1.09951,1818.9,1818.8,10.48950896]
[1746428558128,2.69841,1818.9,1818.8,10.48950896]
[1746428558626,1.5989,1818.9,1818.8,11.58907896]
[1746428559529,2.69841,1818.9,1818.8,10.48950896]
[1746428560729,2.69841,1818.9,1818.8,11.58907896]
[1746428560930,1.5989,1818.9,1818.8,11.58907896]
[1746428562732,1.5989,1818.9,1818.8,4.30737]
[1746428564229,2.69841,1818.9,1818.8,4.30737]
[1746428564533,2.69841,1818.9,1818.8,3.2078]
[1746428564729,1.09957,1818.8,1818.7,3.546]
[1746428564933,3.61017,1818.8,1818.7,4.64563]
[1746428565133,3.61017,1818.8,1818.7,3.546]
[1746428565433,3.61017,1818.8,1818.6,4.30745]
[1746428565635,2.5708,1818.7,1818.6,4.30745]
[1746428565834,2.5708,1818.7,1818.6,5.96265]
[1746428567123,3.67043,1818.7,1818.6,4.863]
[1746428567328,2.5708,1818.7,1818.6,5.96269]
[1746428568033,3.67043,1818.7,1818.6,4.863]
[1746428568234,3.67043,1818.7,1818.6,3.2078]
[1746428568931,2.5708,1818.7,1818.6,4.30749]
[1746428570331,2.5708,1818.7,1818.6,5.90059]
[1746428570532,2.5708,1818.7,1818.6,3.2078]
[1746428570837,2.5708,1818.7,1818.6,1.09969]
[1746428571043,2.5708,1818.7,1818.5,1.5931]
[1746428571239,2.5708,1818.7,1818.6,1.09969]
[1746428572537,2.5708,1818.7,1818.5,2.69279]
[1746428572740,2.5708,1818.7,1818.6,1.09969]
[1746428572942,2.5708,1818.7,1818.6,2.75779]
[1746428575736,3.67047,1818.7,1818.4,16.73787348]
[1746428575941,2.67819,1818.6,1818.4,7.84827]
[1746428576140,1.5785,1818.5,1818.4,7.84827]
[1746428576442,1.96406,1818.7,1818.5,1.09973]
[1746428576739,3.54256,1818.7,1818.5,2.66323]
[1746428578341,1.5785,1818.6,1818.5,2.66323]
[1746428578842,2.67819,1818.6,1818.5,1.5635]
[1746428579235,1.09975,1818.5,1818.4,3.531]
[1746428579438,2.4206,1818.5,1818.4,4.63081]
[1746428579837,2.4206,1818.5,1818.4,6.22071]
[1746428580845,1.5657,1818.5,1818.4,6.22071]
[1746428582043,1.5657,1818.5,1818.4,5.1209]
[1746428582044,2.66545,1818.5,1818.4,5.1209]
[1746428582239,2.66545,1818.5,1818.4,1.5899]
[1746428582439,1.09981,1818.4,1818.3,0.7862]
[1746428582639,3.2593,1818.4,1818.3,1.88607]
[1746428582841,3.2593,1818.4,1818.3,3.57547]
[1746428583144,4.35911,1818.4,1818.3,2.4756]
[1746428584748,3.2593,1818.4,1818.3,3.57547]
[1746428584941,3.2593,1818.4,1818.3,2.4756]
[1746428585141,4.35911,1818.4,1818.3,2.4756]
[1746428586142,3.2593,1818.4,1818.2,3.2078]
[1746428586343,1.09999,1818.1,1818.0,2.4865]
[1746428586936,1.51383578,1818.1,1818.0,2.4865]
[1746428587142,0.8461,1818.1,1818.0,3.58655]
[1746428587344,1.91472,1818.3,1818.1,1.09999]
[1746428587643,1.91472,1818.3,1818.2,1.6927]
[1746428587843,2.3285814,1818.3,1818.2,1.6927]
[1746428588347,0.4139114,1818.3,1818.2,2.79263]
[1746428588848,2.5113,1818.4,1818.2,2.79263]
[1746428589040,2.5113,1818.4,1818.3,2.4597]
[1746428589247,3.61111,1818.4,1818.3,2.4597]
[1746428590154,3.61111,1818.4,1818.2,1.09993]
[1746428590449,2.4778,1818.3,1818.2,1.09993]
[1746428590646,2.4778,1818.3,1818.2,2.74503]
[1746428591044,2.4778,1818.3,1818.2,1.6451]
[1746428591243,2.4778,1818.3,1818.2,5.3771]
[1746428591444,2.4778,1818.3,1818.2,6.47703]
[1746428591950,3.57767,1818.3,1818.2,5.3771]
[1746428592149,3.57767,1818.3,1818.0,3.2078]
[1746428592150,1.09993,1818.2,1818.0,1.10001]
[1746428592344,2.83413,1818.2,1818.0,2.71611]
[1746428593046,1.7342,1818.2,1818.1,1.09999]
[1746428593443,0.783,1818.3,1818.2,1.09993]
[1746428593646,2.5803,1818.4,1818.3,1.09987]
[1746428594553,2.5803,1818.4,1818.2,2.71388]
[1746428594756,3.68011,1818.4,1818.3,1.6965]
[1746428594946,2.99420875,1818.4,1818.3,2.79637]
[1746428595144,2.5803,1818.4,1818.3,6.52837]
[1746428597558,2.99393102,1818.4,1818.3,6.52837]
[1746428598959,2.5803,1818.4,1818.3,6.52837]
[1746428599157,2.5803,1818.4,1818.3,2.79637]
[1746428599460,2.99399916,1818.4,1818.3,2.79637]
[1746428599759,2.5803,1818.4,1818.3,2.79637]
[1746428600464,4.09379635,1818.4,1818.3,2.79637]
[1746428600851,4.09379635,1818.4,1818.3,1.09987]
[1746428601060,4.09381309,1818.4,1818.3,1.09987]
[1746428602068,4.09386302,1818.4,1818.3,1.09987]
[1746428602769,4.09393029,1818.4,1818.3,1.09987]
[1746428602969,4.95963029,1818.4,1818.3,1.09987]
[1746428603171,4.95963029,1818.4,1818.3,2.80107]
[1746428603672,3.85982029,1818.4,1818.3,2.80107]
[1746428604172,3.85982029,1818.4,1818.3,6.53307]
[1746428604569,3.85991728,1818.4,1818.3,6.53307]
[1746428604974,4.95972728,1818.4,1818.3,6.53307]
[1746428605170,4.95972728,1818.4,1818.3,2.80107]
[1746428606370,4.95983522,1818.4,1818.3,2.80107]
[1746428606574,3.86002522,1818.4,1818.3,2.80107]
[1746428606874,0.41402522,1818.4,1818.3,2.80107]
[1746428607174,0.41402522,1818.4,1818.3,6.53307]
[1746428608176,0.41402522,1818.4,1818.3,2.80107]
[1746428608372,2.05462522,1818.4,1818.3,2.80107]
[1746428608775,3.15443522,1818.4,1818.3,2.80107]
[1746428609073,2.05462522,1818.4,1818.3,2.80107]
[1746428609574,3.15443522,1818.4,1818.3,1.7012]
[1746428609770,3.15443522,1818.4,1818.3,2.80107]
[1746428609977,2.87692522,1818.4,1818.3,2.80107]
[1746428610179,2.87692522,1818.4,1818.3,6.53307]
[1746428611279,0.41402522,1818.4,1818.3,6.53307]
[1746428611876,0.41430482,1818.4,1818.3,6.53307]
[1746428612268,1.98560482,1818.4,1818.3,6.53307]
[1746428613480,1.98569321,1818.4,1818.3,6.53307]
[1746428613682,3.08550321,1818.4,1818.3,6.53307]
[1746428613881,1.98569321,1818.4,1818.3,6.53307]
[1746428615074,0.41439321,1818.4,1818.3,6.53307]
[1746428615385,9.14081333,1818.8,1818.7,1.09963]
[1746428615778,5.484488,1818.8,1818.7,4.43893]
[1746428616077,5.484488,1818.8,1818.7,8.17093]
[1746428619080,2.81706,1819.0,1818.8,1.09954]
[1746428619279,2.81706,1819.0,1818.9,1.6068]
[1746428620379,1.7176,1819.0,1818.9,1.6068]
[1746428620778,1.7176,1819.0,1818.9,2.70631]
[1746428621384,2.81705,1819.0,1818.9,1.6068]
[1746428621682,1.7176,1819.0,1818.9,2.70631]
[1746428621884,2.81705,1819.0,1818.9,1.6068]
[1746428622384,2.81705,1819.0,1818.8,1.09952]
[1746428622580,1.6769,1818.9,1818.8,2.77432]
[1746428623083,1.6769,1818.9,1818.8,6.50632]
[1746428623978,2.77641,1818.9,1818.8,5.4068]
[1746428624283,1.6769,1818.9,1818.8,1.09957]
[1746428624978,2.77643,1818.9,1818.7,8.20069]
[1746428625286,2.77643,1818.9,1818.8,1.09957]
[1746428625584,3.2078,1819.1,1818.7,5.4068]
[1746428625774,0.41197316,1819.0,1818.7,4.8316]
[1746428625979,1.09955,1818.9,1818.7,4.8316]
[1746428626172,1.09955,1818.9,1818.8,1.09957]
[1746428627588,1.09955,1818.9,1818.7,1.09958]
[1746428629488,1.09955,1818.9,1818.6,1.6227]
[1746428629681,1.09955,1818.9,1818.7,1.09959]
[1746428630088,1.09949,1819.0,1818.8,1.09957]
[1746428630587,1.09951,1818.9,1818.8,1.88977]
[1746428632583,3.2078,1819.1,1818.8,0.7902]
[1746428632785,1.09936,1819.2,1819.0,1.09943]
[1746428632982,1.09938,1819.1,1818.9,2.67206]
[1746428633183,1.09938,1819.1,1819.0,1.5726]
[1746428633383,1.09938,1819.1,1819.0,2.67205]
[1746428633585,11.50094373,1819.3,1819.1,1.09938]
[1746428633887,11.50094373,1819.3,1819.1,3.54178]
[1746428634390,7.97694373,1819.3,1819.1,3.54178]
[1746428635489,1.09932,1819.2,1819.0,1.09941]
[1746428636282,4.30711,1819.3,1819.0,1.09941]
[1746428636484,4.30711,1819.3,1819.1,1.09938]
[1746428636785,3.2078,1819.3,1819.2,1.09932]
[1746428637591,4.30708,1819.3,1819.1,1.09934]
[1746428641286,4.30708,1819.3,1819.2,1.09932]
[1746428641491,4.30706,1819.3,1819.1,1.09935]
[1746428641994,4.30706,1819.3,1819.2,1.09932]
[1746428642185,4.30706,1819.3,1819.1,1.09934]
[1746428643893,1.09936,1819.2,1819.0,2.72422]
[1746428644089,1.675,1819.1,1819.0,2.72422]
[1746428644283,1.675,1819.1,1819.0,6.45622]
[1746428646896,1.675,1819.1,1819.0,6.45625]
[1746428647089,2.4916,1819.1,1819.0,4.83145]
[1746428647286,2.4916,1819.1,1819.0,1.09945]
[1746428648691,2.4916,1819.1,1819.0,2.69435]
[1746428649296,2.4916,1819.1,1819.0,6.42635]
[1746428649596,0.8403,1819.2,1819.1,1.09938]
[1746428649795,3.2078,1819.3,1819.2,1.09932]
[1746428649998,2.3902,1819.4,1819.3,1.09926]
[1746428650186,2.3902,1819.4,1819.3,2.72046]
[1746428651095,2.3902,1819.4,1819.3,6.45246]
[1746428652993,3.2078,1819.5,1819.4,1.0992]
[1746428653198,4.35617,1819.7,1819.5,1.0991]
[1746428653399,4.35617,1819.7,1819.5,1.9096]
[1746428653697,1.6122,1819.6,1819.5,3.5676]
[1746428654800,2.71128,1819.6,1819.5,2.4685]
[1746428655001,2.71128,1819.6,1819.5,1.658]
[1746428655200,2.71128,1819.6,1819.4,1.95256]
[1746428655503,1.5903,1819.5,1819.4,3.66796]
[1746428656103,1.5903,1819.5,1819.4,7.39996]
[1746428656702,1.5903,1819.5,1819.4,6.54656]
[1746428657091,2.68944,1819.5,1819.4,6.54656]
[1746428657304,2.68944,1819.5,1819.4,1.09916]
[1746428657799,1.09924,1819.4,1819.2,1.09927]
[1746428658001,2.377,1819.3,1819.2,1.09927]
[1746428663208,3.47626,1819.3,1819.1,2.81474]
[1746428663407,3.47626,1819.3,1819.0,7.5748]
[1746428663408,1.6067,1819.2,1819.0,7.5748]
[1746428663609,0.83,1819.1,1819.0,8.67423]
[1746428664102,0.83,1819.1,1819.0,12.40623]
[1746428664705,2.454,1819.1,1819.0,12.40623]
[1746428665110,2.454,1819.1,1819.0,8.67423]
[1746428668813,0.83,1819.1,1819.0,8.67423]
[1746428669011,3.61001,1819.3,1819.1,1.09933]
[1746428669201,4.40431,1819.3,1819.2,1.09932]
[1746428669605,3.305,1819.3,1819.2,1.09932]
[1746428669805,6.92318,1819.5,1819.3,1.09921]
[1746428670011,10.28158,1819.5,1819.3,1.09921]
[1746428670210,1.724,1819.4,1819.3,1.09921]
[1746428670411,1.724,1819.4,1819.3,3.63201]
[1746428671313,7.4584,1819.5,1819.4,1.0992]
[1746428671519,1.6344,1819.5,1819.4,2.7844]
[1746428672911,3.3606,1819.5,1819.4,2.7844]
[1746428675216,4.76889373,1819.7,1819.5,1.09911]
[1746428675517,1.6291,1819.6,1819.5,2.75541]
[1746428676316,1.6291,1819.6,1819.5,6.48741]
[1746428678514,1.6291,1819.6,1819.5,5.3883]
[1746428678918,2.72818,1819.6,1819.5,3.732]
[1746428679214,1.09917,1819.5,1819.3,4.62124]
[1746428679521,0.8156,1819.4,1819.3,4.62124]
[1746428679821,1.6572,1819.4,1819.3,4.62124]
[1746428680211,3.3429,1819.4,1819.3,4.62124]
[1746428681317,3.3429,1819.4,1819.3,3.522]
[1746428681514,3.3429,1819.4,1819.2,3.732]
[1746428681815,1.6857,1819.3,1819.2,4.83131]
[1746428682119,1.6857,1819.3,1819.2,1.09931]